fUST/lending_fUST_20251216
["ID","MTS","AMOUNT","RATE_DAILY","PERIOD"]
[398574921,1765849845433,-509.38453749,0.00010958,2]
[398574922,1765849845442,-500.0,0.00010958,2]
[398574923,1765849845451,-500.0,0.00010958,2]
[398574924,1765849845461,-2050.31,0.00010958,2]
[398574925,1765849845470,-1139.42,0.00010958,2]
[398574927,1765849845479,-500.0,0.00010958,2]
[398574929,1765849845488,-706.19,0.00010958,2]
[398574931,1765849845497,-500.0,0.00010958,2]
[398574933,1765849845507,-42067.61,0.00010958,2]
[398574935,1765849845517,-500.0,0.00010958,2]
[398574937,1765849845526,-526.74,0.00010958,2]
[398574939,1765849845535,-1390.35,0.00010958,2]
[398574941,1765849845545,-500.0,0.00010958,2]
[398574943,1765849845554,-500.0,0.00010958,2]
[398574945,1765849845563,-500.0,0.00010958,2]
[398574946,1765849845572,-500.0,0.00010958,2]
[398574947,1765849845582,-500.0,0.00010958,2]
[398574948,1765849845592,-500.0,0.00010958,2]
[398574949,1765849845602,-559.69,0.00010958,2]
[398574950,1765849845611,-500.0,0.00010958,2]
[398574951,1765849845622,-500.0,0.00010958,2]
[398574952,1765849845631,-2771.49,0.00010958,2]
[398574953,1765849845640,-3174.86,0.00010958,2]
[398574954,1765849845649,-548.63,0.00010958,2]
[398574955,1765849845658,-500.0,0.00010958,2]
[398574956,1765849845668,-640.57611871,0.00010958,2]
[398574957,1765849845677,-500.0,0.00010958,2]
[398574958,1765849845687,-10030.33,0.00010958,2]
[398574959,1765849845696,-500.0,0.00010958,2]
[398574960,1765849845706,-2592.19,0.00010958,2]
[398574961,1765849845715,-500.0,0.00010958,2]
[398574962,1765849845725,-500.0,0.00010958,2]
[398574963,1765849845736,-500.0,0.00010958,2]
[398574964,1765849845745,-500.0,0.00010958,2]
[398574965,1765849845754,-500.0,0.00010958,2]
[398574966,1765849845763,-622.52,0.00010958,2]
[398574967,1765849845772,-5620.36,0.00010958,2]
[398574968,1765849845781,-500.0,0.00010958,2]
[398574969,1765849845792,-3267.85,0.00010958,2]
[398574970,1765849845809,-926.22,0.00010958,2]
[398574971,1765849845818,-500.0,0.00010958,2]
[398574972,1765849845827,-621.56,0.00010958,2]
[398574973,1765849845837,-500.0,0.00010958,2]
[398574974,1765849845847,-500.0,0.00010958,2]
[398574975,1765849845857,-500.0,0.00010958,2]
[398574976,1765849845866,-1326.93,0.00010958,2]
[398574977,1765849845880,-401.62199743,0.00010958,2]
[398574978,1765849845889,-500.0,0.00010958,2]
[398574979,1765849845898,-500.0,0.00010958,2]
[398574980,1765849845907,-500.0,0.00010958,2]
[398574981,1765849845916,-509.07055355,0.00010958,2]
[398574982,1765849845926,-2239.01,0.00010958,2]
[398574983,1765849845936,-2438.43,0.00010958,2]
[398574984,1765849845945,-2606.68,0.00010958,2]
[398574985,1765849845954,-500.0,0.00010958,2]
[398574986,1765849845964,-500.0,0.00010958,2]
[398574987,1765849845974,-500.0,0.00010958,2]
[398574988,1765849845983,-559.98,0.00010958,2]
[398574989,1765849845993,-1646.33,0.00010958,2]
[398574990,1765849846002,-500.0,0.00010958,2]
[398574991,1765849846011,-3926.82,0.00010958,2]
[398574992,1765849846020,-16093.55,0.00010958,2]
[398574993,1765849846029,-500.0,0.00010958,2]
[398574994,1765849846038,-500.0,0.00010958,2]
[398574995,1765849846047,-500.0,0.00010958,2]
[398574996,1765849846056,-2549.89,0.00010958,2]
[398574997,1765849846066,-2274.98,0.00010958,2]
[398574998,1765849846074,-500.0,0.00010958,2]
[398574999,1765849846083,-500.0,0.00010958,2]
[398575000,1765849846093,-500.0,0.00010958,2]
[398575001,1765849846102,-500.0,0.00010958,2]
[398575002,1765849846111,-500.0,0.00010958,2]
[398575003,1765849846120,-575.28,0.00010958,2]
[398575004,1765849846129,-500.0,0.00010958,2]
[398575005,1765849846138,-500.0,0.00010958,2]
[398575006,1765849846147,-27986.29,0.00010958,2]
[398575007,1765849846155,-500.0,0.00010958,2]
[398575008,1765849846165,-500.0,0.00010958,2]
[398575009,1765849846174,-4166.66,0.00010958,2]
[398575010,1765849846183,-802.01,0.00010958,2]
[398575011,1765849846192,-500.94490945,0.00010958,2]
[398575012,1765849846201,-2816.93,0.00010958,2]
[398575013,1765849846210,-500.0,0.00010958,2]
[398575014,1765849846219,-3727.8,0.00010958,2]
[398575015,1765849846229,-500.0,0.00010958,2]
[398575016,1765849846238,-500.0,0.00010958,2]
[398575017,1765849846247,-966.63,0.00010958,2]
[398575018,1765849846257,-500.0,0.00010958,2]
[398575019,1765849846266,-892.57,0.00010958,2]
[398575020,1765849846275,-2488.81,0.00010958,2]
[398575021,1765849846285,-500.0,0.00010958,2]
[398575022,1765849846294,-500.0,0.00010958,2]
[398575023,1765849846303,-500.0,0.00010958,2]
[398575024,1765849846313,-500.0,0.00010958,2]
[398575025,1765849846322,-710.77,0.00010958,2]
[398575026,1765849846331,-500.0,0.00010958,2]
[398575027,1765849846340,-1989.26,0.00010958,2]
[398575028,1765849846349,-2011.19,0.00010958,2]
[398575029,1765849846359,-500.0,0.00010958,2]
[398575030,1765849846368,-2644.4,0.00010958,2]
[398575031,1765849846377,-500.0,0.00010958,2]
[398575032,1765849846386,-4866.75,0.00010958,2]
[398575033,1765849846395,-276.65958085,0.00010958,2]
[398575034,1765849846405,-500.0,0.00010958,2]
[398575035,1765849846414,-500.0,0.00010958,2]
[398575036,1765849846423,-500.0,0.00010958,2]
[398575037,1765849846433,-735.04,0.00010958,2]
[398575038,1765849846442,-500.0,0.00010958,2]
[398575039,1765849846451,-2217.06,0.00010958,2]
[398575040,1765849846460,-1448.39,0.00010958,2]
[398575041,1765849846470,-500.0,0.00010958,2]
[398575042,1765849846478,-500.0,0.00010958,2]
[398575043,1765849846487,-393.62575578,0.00010958,2]
[398575044,1765849846496,-500.0,0.00010958,2]
[398575045,1765849846505,-500.0,0.00010958,2]
[398575046,1765849846514,-500.0,0.00010958,2]
[398575047,1765849846522,-500.0,0.00010958,2]
[398575048,1765849846531,-500.0,0.00010958,2]
[398575049,1765849846540,-500.0,0.00010958,2]
[398575050,1765849846548,-500.0,0.00010958,2]
[398575051,1765849846558,-500.0,0.00010958,2]
[398575052,1765849846567,-2450.36,0.00010958,2]
[398575053,1765849846576,-9344.14,0.00010958,2]
[398575054,1765849846585,-815.72,0.00010958,2]
[398575055,1765849846595,-1392.83,0.00010958,2]
[398575056,1765849846604,-1032.91,0.00010958,2]
[398575057,1765849846613,-500.0,0.00010958,2]
[398575058,1765849846622,-4172.74,0.00010958,2]
[398575059,1765849846631,-436.79902623,0.00010958,2]
[398575060,1765849846640,-1283.83,0.00010958,2]
[398575061,1765849846649,-500.0,0.00010958,2]
[398575062,1765849846658,-2114.37,0.00010958,2]
[398575063,1765849846666,-974.88,0.00010958,2]
[398575064,1765849846675,-500.0,0.00010958,2]
[398575065,1765849846684,-500.0,0.00010958,2]
[398575067,1765849846842,-1972.74,0.00010958,2]
[398575069,1765849846870,-516.58,0.00010958,2]
[398575070,1765849846881,-500.0,0.00010958,2]
[398575071,1765849846890,-500.0,0.00010958,2]
[398575072,1765849846899,-500.0,0.00010958,2]
[398575073,1765849846908,-500.0,0.00010958,2]
[398575074,1765849846917,-500.0,0.00010958,2]
[398575075,1765849846926,-500.0,0.00010958,2]
[398575076,1765849846935,-500.0,0.00010958,2]
[398575077,1765849846944,-500.0,0.00010958,2]
[398575078,1765849846953,-500.0,0.00010958,2]
[398575079,1765849846962,-1561.42,0.00010958,2]
[398575080,1765849846971,-500.0,0.00010958,2]
[398575081,1765849846979,-500.0,0.00010958,2]
[398575082,1765849846988,-500.0,0.00010958,2]
[398575083,1765849846997,-632.04,0.00010958,2]
[398575084,1765849847006,-500.0,0.00010958,2]
[398575085,1765849847015,-500.0,0.00010958,2]
[398575086,1765849847025,-500.0,0.00010958,2]
[398575087,1765849847035,-500.0,0.00010958,2]
[398575088,1765849847044,-4176.72,0.00010958,2]
[398575089,1765849847053,-500.0,0.00010958,2]
[398575090,1765849847061,-500.0,0.00010958,2]
[398575091,1765849847071,-760.86,0.00010958,2]
[398575092,1765849847081,-500.0,0.00010958,2]
[398575093,1765849847090,-965.63,0.00010958,2]
[398575094,1765849847099,-690.73,0.00010958,2]
[398575095,1765849847108,-500.0,0.00010958,2]
[398575096,1765849847117,-500.0,0.00010958,2]
[398575097,1765849847127,-500.0,0.00010958,2]
[398575098,1765849847135,-1264.62,0.00010958,2]
[398575099,1765849847144,-500.0,0.00010958,2]
[398575100,1765849847154,-500.0,0.00010958,2]
[398575101,1765849847163,-3352.24,0.00010958,2]
[398575102,1765849847172,-1231.8,0.00010958,2]
[398575103,1765849847181,-500.0,0.00010958,2]
[398575104,1765849847190,-500.0,0.00010958,2]
[398575105,1765849847200,-2529.69,0.00010958,2]
[398575106,1765849847209,-500.0,0.00010958,2]
[398575107,1765849847218,-500.0,0.00010958,2]
[398575108,1765849847227,-500.0,0.00010958,2]
[398575109,1765849847237,-1027.31,0.00010958,2]
[398575110,1765849847245,-500.0,0.00010958,2]
[398575111,1765849847254,-500.0,0.00010958,2]
[398575112,1765849847264,-500.0,0.00010958,2]
[398575113,1765849847273,-755.76,0.00010958,2]
[398575114,1765849847282,-1250.88,0.00010958,2]
[398575115,1765849847291,-1522.09,0.00010958,2]
[398575116,1765849847300,-946.8,0.00010958,2]
[398575117,1765849847311,-500.0,0.00010958,2]
[398575118,1765849847320,-500.0,0.00010958,2]
[398575119,1765849847331,-500.0,0.00010958,2]
[398575120,1765849847341,-500.0,0.00010958,2]
[398575121,1765849847351,-500.0,0.00010958,2]
[398575122,1765849847360,-3162.19,0.00010958,2]
[398575123,1765849847370,-867.58,0.00010958,2]
[398575124,1765849847379,-151.07,0.00010958,2]
[398575125,1765849847389,-500.0,0.00010958,2]
[398575126,1765849847398,-500.0,0.00010958,2]
[398575127,1765849847408,-152.11221105,0.00010958,2]
[398575128,1765849847417,-500.0,0.00010958,2]
[398575129,1765849847426,-5823.93,0.00010958,2]
[398575130,1765849847438,-847.85,0.00010958,2]
[398575131,1765849847447,-500.38672288,0.00010958,2]
[398575132,1765849847456,-500.0,0.00010958,2]
[398575133,1765849847465,-8090.9,0.00010958,2]
[398575134,1765849847474,-500.0,0.00010958,2]
[398575135,1765849847483,-500.0,0.00010958,2]
[398575136,1765849847492,-2111.91,0.00010958,2]
[398575137,1765849847501,-500.0,0.00010958,2]
[398575138,1765849847510,-500.0,0.00010958,2]
[398575139,1765849847519,-884.39,0.00010958,2]
[398575140,1765849847528,-500.0,0.00010958,2]
[398575141,1765849847537,-980.43,0.00010958,2]
[398575142,1765849847546,-500.0,0.00010958,2]
[398575143,1765849847555,-1018.32,0.00010958,2]
[398575144,1765849847564,-2662.61,0.00010958,2]
[398575145,1765849847573,-500.0,0.00010958,2]
[398575146,1765849847585,-500.0,0.00010958,2]
[398575147,1765849847594,-4543.9,0.00010958,2]
[398575148,1765849847603,-500.0,0.00010958,2]
[398575149,1765849847612,-1892.84,0.00010958,2]
[398575150,1765849847621,-459.36187918,0.00010958,2]
[398575151,1765849847630,-500.0,0.00010958,2]
[398575152,1765849847639,-765.67,0.00010958,2]
[398575153,1765849847649,-500.0,0.00010958,2]
[398575154,1765849847658,-476.55325836,0.00010958,2]
[398575155,1765849847667,-703.95,0.00010958,2]
[398575156,1765849847676,-500.0,0.00010958,2]
[398575157,1765849847685,-500.0,0.00010958,2]
[398575158,1765849847694,-775.93,0.00010958,2]
[398575159,1765849847703,-500.0,0.00010958,2]
[398575160,1765849847712,-543.98,0.00010958,2]
[398575161,1765849847721,-500.0,0.00010958,2]
[398575162,1765849847730,-859.97,0.00010958,2]
[398575163,1765849847740,-811.56,0.00010958,2]
[398575164,1765849847749,-500.0,0.00010958,2]
[398575165,1765849847758,-200.02143466,0.00010958,2]
[398575166,1765849847767,-532.07460368,0.00010958,2]
[398575167,1765849847776,-688.71,0.00010958,2]
[398575168,1765849847785,-1973.96,0.00010958,2]
[398575169,1765849847796,-500.0,0.00010958,2]
[398575170,1765849847806,-500.0,0.00010958,2]
[398575171,1765849847815,-999.0,0.00010959,2]
[398575172,1765849847824,-151.0,0.00010959,2]
[398575173,1765849847834,-151.0,0.00010959,2]
[398575174,1765849847843,-151.0,0.00010959,2]
[398575175,1765849847852,-151.0,0.00010959,2]
[398575176,1765849847861,-151.0,0.00010959,2]
[398575177,1765849847870,-151.0,0.00010959,2]
[398575178,1765849847880,-151.0,0.00010959,2]
[398575179,1765849847889,-224.799139,0.00010959,2]
[398575180,1765849847899,-5794.9511548,0.00010959,2]
[398575181,1765849847908,-500.0,0.00010959,2]
[398575182,1765849847917,-500.0,0.00010959,2]
[398575183,1765849847926,-500.0,0.00010959,2]
[398575184,1765849847936,-492.26276657,0.00010959,2]
[398575185,1765849847944,-500.0,0.00010959,2]
[398575186,1765849847954,-500.0,0.00010959,2]
[398575187,1765849847964,-500.0,0.00010959,2]
[398575188,1765849847973,-500.0,0.00010959,2]
[398575189,1765849847982,-650.0,0.00010959,2]
[398575190,1765849847991,-500.0,0.00010959,2]
[398575191,1765849848000,-500.0,0.00010959,2]
[398575192,1765849848010,-500.0,0.00010959,2]
[398575193,1765849848019,-500.0,0.00010959,2]
[398575194,1765849848028,-500.0,0.00010959,2]
[398575195,1765849848037,-500.0,0.00010959,2]
[398575196,1765849848046,-500.0,0.00010959,2]
[398575197,1765849848055,-500.0,0.00010959,2]
[398575198,1765849848064,-500.0,0.00010959,2]
[398575199,1765849848073,-500.0,0.00010959,2]
[398575200,1765849848083,-500.0,0.00010959,2]
[398575201,1765849848092,-500.0,0.00010959,2]
[398575202,1765849848101,-500.0,0.00010959,2]
[398575203,1765849848109,-500.0,0.00010959,2]
[398575204,1765849848118,-500.0,0.00010959,2]
[398575205,1765849848129,-500.0,0.00010959,2]
[398575206,1765849848138,-500.0,0.00010959,2]
[398575207,1765849848147,-500.0,0.00010959,2]
[398575208,1765849848156,-500.0,0.00010959,2]
[398575209,1765849848166,-500.0,0.00010959,2]
[398575210,1765849848176,-500.0,0.00010959,2]
[398575211,1765849848185,-342.48159136,0.00010959,2]
[398575212,1765849848194,-500.0,0.00010959,2]
[398575213,1765849848203,-500.0,0.00010959,2]
[398575214,1765849848213,-298.2935971,0.00011095,2]
[398575215,1765849848223,-150.0,0.00011095,2]
[398575216,1765849848233,-283.92460139,0.00011095,2]
[398575217,1765849848242,-206.17421589,0.00011095,2]
[398575218,1765849848251,-383.42,0.00011132,2]
[398575219,1765849848260,-300.0,0.00011177,2]
[398575220,1765849848269,-300.0,0.00011177,2]
[398575221,1765849848279,-300.0,0.00011177,2]
[398575222,1765849848288,-300.0,0.00011177,2]
[398575223,1765849848298,-300.0,0.00011177,2]
[398575224,1765849848307,-300.0,0.00011177,2]
[398575225,1765849848316,-300.0,0.00011177,2]
[398575226,1765849848326,-300.0,0.00011177,2]
[398575227,1765849848335,-300.0,0.00011177,2]
[398575228,1765849848345,-300.0,0.00011177,2]
[398575229,1765849848354,-300.0,0.00011177,2]
[398575230,1765849848363,-300.0,0.00011177,2]
[398575231,1765849848372,-300.0,0.00011177,2]
[398575232,1765849848381,-300.0,0.00011177,2]
[398575233,1765849848390,-300.0,0.00011177,2]
[398575234,1765849848400,-600.0,0.00011177,2]
[398575235,1765849848409,-885.83283037,0.00011217,2]
[398575236,1765849848418,-192.70948898,0.00011232,2]
[398575237,1765849848427,-150.0,0.00011232,2]
[398575238,1765849848437,-151.0,0.00011232,2]
[398575239,1765849848445,-500.0,0.00011232,2]
[398575240,1765849848454,-500.0,0.00011232,2]
[398575241,1765849848463,-500.0,0.00011232,2]
[398575242,1765849848473,-500.0,0.00011232,2]
[398575243,1765849848482,-1000.0,0.00011232,2]
[398575244,1765849848491,-500.0,0.00011232,2]
[398575245,1765849848499,-500.0,0.00011232,2]
[398575246,1765849848508,-500.0,0.00011232,2]
[398575247,1765849848517,-500.0,0.00011232,2]
[398575248,1765849848527,-500.0,0.00011232,2]
[398575249,1765849848535,-622.38,0.00011232,2]
[398575250,1765849848544,-519.3,0.00011232,2]
[398575251,1765849848553,-500.0,0.00011232,2]
[398575252,1765849848562,-500.0,0.00011232,2]
[398575253,1765849848571,-500.0,0.00011232,2]
[398575254,1765849848580,-1640.21,0.00011232,2]
[398575255,1765849848590,-500.0,0.00011232,2]
[398575256,1765849848599,-500.0,0.00011232,2]
[398575257,1765849848609,-500.0,0.00011232,2]
[398575258,1765849848618,-500.0,0.00011232,2]
[398575259,1765849848627,-565.35,0.00011232,2]
[398575260,1765849848636,-971.33,0.00011232,2]
[398575261,1765849848645,-500.0,0.00011232,2]
[398575262,1765849848654,-500.0,0.00011232,2]
[398575263,1765849848664,-500.0,0.00011232,2]
[398575264,1765849848675,-500.0,0.00011232,2]
[398575265,1765849848686,-1343.6,0.00011232,2]
[398575266,1765849848695,-500.0,0.00011232,2]
[398575267,1765849848704,-535.37014879,0.00011232,2]
[398575268,1765849848713,-974.47,0.00011232,2]
[398575269,1765849848722,-500.0,0.00011232,2]
[398575270,1765849848732,-500.0,0.00011232,2]
[398575271,1765849848742,-500.0,0.00011232,2]
[398575272,1765849848751,-411.6168274,0.00011232,2]
[398575273,1765849848760,-500.0,0.00011232,2]
[398575274,1765849848768,-414.98560966,0.00011232,2]
[398575275,1765849848777,-500.0,0.00011232,2]
[398575276,1765849848786,-500.0,0.00011232,2]
[398575277,1765849848796,-500.0,0.00011232,2]
[398575278,1765849848807,-500.0,0.00011232,2]
[398575279,1765849848816,-500.0,0.00011232,2]
[398575280,1765849848825,-500.0,0.00011232,2]
[398575281,1765849848835,-798.79,0.00011232,2]
[398575282,1765849848845,-500.0,0.00011232,2]
[398575283,1765849848855,-500.0,0.00011232,2]
[398575284,1765849848864,-500.0,0.00011232,2]
[398575285,1765849848873,-500.0,0.00011232,2]
[398575286,1765849848882,-500.0,0.00011232,2]
[398575287,1765849848891,-500.0,0.00011232,2]
[398575288,1765849848900,-500.0,0.00011232,2]
[398575289,1765849848909,-507.71966826,0.00011232,2]
[398575290,1765849848918,-500.0,0.00011232,2]
[398575291,1765849848927,-500.0,0.00011232,2]
[398575292,1765849848936,-1295.58,0.00011232,2]
[398575293,1765849848945,-500.0,0.00011232,2]
[398575294,1765849848954,-570.27866097,0.00011232,2]
[398575295,1765849848963,-518.23702823,0.00011232,2]
[398575296,1765849848972,-1633.82,0.00011232,2]
[398575297,1765849848981,-500.0,0.00011232,2]
[398575298,1765849848990,-2430.57,0.00011232,2]
[398575299,1765849848999,-500.0,0.00011232,2]
[398575300,1765849849007,-500.0,0.00011232,2]
[398575301,1765849849016,-500.0,0.00011232,2]
[398575302,1765849849025,-500.0,0.00011232,2]
[398575303,1765849849034,-500.0,0.00011232,2]
[398575304,1765849849043,-367.82643094,0.00011232,2]
[398575305,1765849849052,-1032.26,0.00011232,2]
[398575306,1765849849060,-500.0,0.00011232,2]
[398575307,1765849849069,-1629.42,0.00011232,2]
[398575308,1765849849078,-500.0,0.00011232,2]
[398575309,1765849849088,-500.0,0.00011232,2]
[398575310,1765849849097,-632.25,0.00011232,2]
[398575311,1765849849106,-500.0,0.00011232,2]
[398575312,1765849849114,-500.0,0.00011232,2]
[398575313,1765849849124,-500.0,0.00011232,2]
[398575314,1765849849133,-976.13,0.00011232,2]
[398575315,1765849849142,-500.0,0.00011232,2]
[398575316,1765849849151,-500.0,0.00011232,2]
[398575317,1765849849161,-1061.92,0.00011232,2]
[398575318,1765849849170,-746.9,0.00011232,2]
[398575319,1765849849179,-500.0,0.00011232,2]
[398575320,1765849849188,-500.0,0.00011232,2]
[398575321,1765849849197,-505.19721733,0.00011232,2]
[398575322,1765849849206,-500.0,0.00011232,2]
[398575323,1765849849215,-642.27,0.00011232,2]
[398575324,1765849849224,-500.0,0.00011232,2]
[398575325,1765849849233,-653.97,0.00011232,2]
[398575326,1765849849243,-500.0,0.00011232,2]
[398575327,1765849849251,-500.0,0.00011232,2]
[398575328,1765849849261,-607.28,0.00011232,2]
[398575329,1765849849271,-1013.74,0.00011232,2]
[398575330,1765849849280,-291.31160639,0.00011232,2]
[398575331,1765849849292,-500.0,0.00011232,2]
[398575332,1765849849301,-500.0,0.00011232,2]
[398575333,1765849849313,-500.0,0.00011232,2]
[398575334,1765849849323,-500.0,0.00011232,2]
[398575335,1765849849333,-1153.51,0.00011232,2]
[398575336,1765849849342,-991.85,0.00011232,2]
[398575337,1765849849351,-500.0,0.00011232,2]
[398575338,1765849849361,-500.0,0.00011232,2]
[398575339,1765849849370,-500.0,0.00011232,2]
[398575340,1765849849379,-500.0,0.00011232,2]
[398575341,1765849849388,-500.0,0.00011232,2]
[398575342,1765849849397,-524.66089305,0.00011232,2]
[398575343,1765849849406,-2142.42,0.00011232,2]
[398575344,1765849849415,-994.12,0.00011232,2]
[398575345,1765849849424,-500.0,0.00011232,2]
[398575346,1765849849434,-500.0,0.00011232,2]
[398575347,1765849849443,-500.0,0.00011232,2]
[398575348,1765849849452,-797.91,0.00011232,2]
[398575349,1765849849461,-1020.35,0.00011232,2]
[398575350,1765849849470,-500.0,0.00011232,2]
[398575351,1765849849480,-500.0,0.00011232,2]
[398575352,1765849849490,-500.0,0.00011232,2]
[398575353,1765849849500,-470.06332437,0.00011232,2]
[398575354,1765849849509,-593.25398654,0.00011232,2]
[398575355,1765849849518,-525.43,0.00011232,2]
[398575356,1765849849527,-500.0,0.00011232,2]
[398575357,1765849849536,-513.04260744,0.00011232,2]
[398575358,1765849849545,-500.0,0.00011232,2]
[398575359,1765849849554,-500.0,0.00011232,2]
[398575360,1765849849720,-500.0,0.00011232,2]
[398575361,1765849849730,-500.0,0.00011232,2]
[398575362,1765849849739,-500.0,0.00011232,2]
[398575363,1765849849748,-500.0,0.00011232,2]
[398575364,1765849849757,-500.0,0.00011232,2]
[398575365,1765849849766,-2003.12,0.00011232,2]
[398575366,1765849849775,-500.0,0.00011232,2]
[398575367,1765849849785,-661.01,0.00011232,2]
[398575368,1765849849794,-500.0,0.00011232,2]
[398575369,1765849849806,-500.0,0.00011232,2]
[398575370,1765849849821,-500.0,0.00011232,2]
[398575371,1765849849836,-500.0,0.00011232,2]
[398575372,1765849849845,-500.0,0.00011232,2]
[398575373,1765849849856,-1574.4,0.00011232,2]
[398575374,1765849849866,-899.9,0.00011232,2]
[398575375,1765849849876,-500.0,0.00011232,2]
[398575376,1765849849888,-500.0,0.00011232,2]
[398575377,1765849849898,-500.0,0.00011232,2]
[398575378,1765849849906,-500.0,0.00011232,2]
[398575379,1765849849915,-500.0,0.00011232,2]
[398575380,1765849849925,-500.0,0.00011232,2]
[398575381,1765849849933,-532.22,0.00011232,2]
[398575382,1765849849943,-500.0,0.00011232,2]
[398575383,1765849849952,-729.55,0.00011232,2]
[398575384,1765849849961,-500.0,0.00011232,2]
[398575385,1765849849970,-500.0,0.00011232,2]
[398575386,1765849849979,-500.0,0.00011232,2]
[398575387,1765849849988,-512.23,0.00011232,2]
[398575388,1765849849997,-500.0,0.00011232,2]
[398575389,1765849850006,-557.84,0.00011232,2]
[398575390,1765849850016,-500.0,0.00011232,2]
[398575391,1765849850025,-500.0,0.00011232,2]
[398575392,1765849850034,-725.36,0.00011232,2]
[398575393,1765849850043,-500.0,0.00011232,2]
[398575394,1765849850052,-500.0,0.00011232,2]
[398575395,1765849850061,-500.0,0.00011232,2]
[398575396,1765849850070,-500.0,0.00011232,2]
[398575397,1765849850079,-607.57,0.00011232,2]
[398575398,1765849850088,-500.0,0.00011232,2]
[398575399,1765849850097,-693.86,0.00011232,2]
[398575400,1765849850105,-1546.46,0.00011232,2]
[398575401,1765849850115,-500.0,0.00011232,2]
[398575402,1765849850125,-500.0,0.00011232,2]
[398575403,1765849850134,-566.87,0.00011232,2]
[398575404,1765849850144,-500.0,0.00011232,2]
[398575405,1765849850153,-500.0,0.00011232,2]
[398575406,1765849850162,-1687.21,0.00011232,2]
[398575407,1765849850171,-500.0,0.00011232,2]
[398575408,1765849850179,-500.0,0.00011232,2]
[398575409,1765849850189,-1831.66,0.00011232,2]
[398575410,1765849850198,-1100.89,0.00011232,2]
[398575411,1765849850207,-500.0,0.00011232,2]
[398575412,1765849850216,-1217.34,0.00011232,2]
[398575413,1765849850225,-500.0,0.00011232,2]
[398575414,1765849850234,-1122.32,0.00011232,2]
[398575415,1765849850244,-500.0,0.00011232,2]
[398575416,1765849850253,-500.0,0.00011232,2]
[398575417,1765849850262,-500.0,0.00011232,2]
[398575418,1765849850271,-500.0,0.00011232,2]
[398575419,1765849850280,-500.0,0.00011232,2]
[398575420,1765849850291,-1515.86,0.00011232,2]
[398575421,1765849850303,-968.86,0.00011232,2]
[398575422,1765849850315,-500.0,0.00011232,2]
[398575423,1765849850324,-500.0,0.00011232,2]
[398575424,1765849850335,-500.0,0.00011232,2]
[398575425,1765849850345,-500.0,0.00011232,2]
[398575426,1765849850354,-500.0,0.00011232,2]
[398575427,1765849850363,-500.0,0.00011232,2]
[398575428,1765849850372,-1138.67,0.00011232,2]
[398575429,1765849850381,-8061.63,0.00011232,2]
[398575430,1765849850390,-500.0,0.00011232,2]
[398575431,1765849850399,-500.0,0.00011232,2]
[398575432,1765849850408,-2530.29,0.00011232,2]